bitfinex/quotes_BTCUSD_20240827
["timestamp","ask_amount","ask_price","bid_price","bid_amount"]
[1724788603947,0.07169419,62089.0,62078.0,0.005]
[1724788603948,0.07152985,62089.0,62078.0,0.005]
[1724788604156,0.02400002,62088.0,62078.0,0.005]
[1724788604801,0.02400002,62088.0,62079.0,0.02559762]
[1724788605632,0.05,62084.0,62079.0,0.02559762]
[1724788605932,0.02400002,62083.0,62079.0,0.02559762]
[1724788606353,0.02400002,62083.0,62079.0,0.02059762]
[1724788606557,0.023,62083.0,62079.0,0.18168162]
[1724788606759,0.023,62083.0,62080.0,0.09649446]
[1724788607648,0.04926385,62083.0,62080.0,0.09649446]
[1724788608064,0.05126385,62083.0,62080.0,0.09649446]
[1724788608610,0.05026383,62083.0,62080.0,0.09649446]
[1724788608835,0.05026383,62083.0,62081.0,0.07392541]
[1724788609437,0.05026383,62083.0,62078.0,0.166087]
[1724788609438,0.39926385,62083.0,62078.0,0.005]
[1724788609640,0.40126385,62083.0,62078.0,0.005]
[1724788609843,0.40126385,62083.0,62078.0,0.166087]
[1724788610053,0.39926385,62083.0,62078.0,0.166087]
[1724788610259,0.40126385,62083.0,62078.0,0.166087]
[1724788610596,0.39926385,62083.0,62078.0,0.166087]
[1724788611006,0.40126385,62083.0,62078.0,0.005]
[1724788611981,0.02726383,62083.0,62082.0,0.630631]
[1724788612194,0.02726383,62083.0,62082.0,0.952785]
[1724788613264,0.02526383,62083.0,62082.0,0.952785]
[1724788613468,0.02626383,62083.0,62082.0,0.630631]
[1724788613671,0.02626383,62083.0,62082.0,0.72600122]
[1724788613672,0.02526383,62083.0,62082.0,0.72600122]
[1724788614088,0.02626383,62083.0,62082.0,0.72600122]
[1724788614876,0.02726383,62083.0,62082.0,0.72700122]
[1724788615735,0.02726383,62083.0,62082.0,0.631631]
[1724788618652,0.002,62083.0,62082.0,0.631631]
[1724788618857,0.02726253,62083.0,62082.0,0.631631]
[1724788621255,0.02726253,62083.0,62082.0,0.1484]
[1724788621483,0.02726253,62083.0,62082.0,0.001]
[1724788621484,0.05026253,62083.0,62082.0,0.001]
[1724788621715,0.09800913,62083.0,62082.0,0.001]
[1724788622014,0.05026253,62083.0,62082.0,0.001]
[1724788622465,0.39826253,62083.0,62079.0,0.0009042]
[1724788622683,0.09778747,62080.0,62079.0,0.0009042]
[1724788622900,0.11600002,62080.0,62079.0,0.0009042]
[1724788623102,0.13900002,62080.0,62079.0,0.0009042]
[1724788623560,0.21068123,62080.0,62079.0,0.0009042]
[1724788624041,0.13900002,62080.0,62079.0,0.0009042]
[1724788624667,0.21068123,62080.0,62079.0,0.0009042]
[1724788624886,0.13900002,62080.0,62079.0,0.0009042]
[1724788625340,0.05,62080.0,62079.0,0.0009042]
[1724788625549,0.12170687,62080.0,62079.0,0.0009042]
[1724788625755,0.05,62080.0,62079.0,0.0019042]
[1724788626163,0.05,62080.0,62079.0,0.0009042]
[1724788626500,0.05,62080.0,62079.0,0.0019042]
[1724788626710,0.1454932,62080.0,62079.0,0.0019042]
[1724788627116,0.1454932,62080.0,62079.0,0.05092252]
[1724788627817,0.1454932,62080.0,62079.0,0.0019042]
[1724788628020,0.05,62080.0,62079.0,0.0019042]
[1724788630748,0.1693665,62080.0,62079.0,0.0019042]
[1724788631935,0.05,62080.0,62079.0,0.0019042]
[1724788633850,0.1139,62080.0,62079.0,0.0019042]
[1724788634066,0.1369,62080.0,62079.0,0.0019042]
[1724788634304,0.13790002,62080.0,62079.0,0.0019042]
[1724788635153,0.44222182,62080.0,62079.0,0.0019042]
[1724788635387,0.94538582,62080.0,62079.0,0.0019042]
[1724788635606,0.80214602,62080.0,62079.0,0.0019042]
[1724788637150,0.47998202,62080.0,62079.0,0.0019042]
[1724788639668,0.31890002,62080.0,62079.0,0.0019042]
[1724788643162,0.4800448,62080.0,62079.0,0.0019042]
[1724788643384,0.31890002,62080.0,62079.0,0.0019042]
[1724788644028,0.3179,62080.0,62079.0,0.0019042]
[1724788644393,0.6679,62080.0,62079.0,0.0019042]
[1724788644632,0.82904478,62080.0,62079.0,0.0019042]
[1724788644813,0.6679,62080.0,62079.0,0.0019042]
[1724788645272,0.6679,62080.0,62079.0,0.0009042]
[1724788645692,0.6829,62080.0,62079.0,0.0009042]
[1724788645916,1.158146,62080.0,62079.0,0.0009042]
[1724788646135,0.835982,62080.0,62079.0,0.0009042]
[1724788646365,1.164146,62080.0,62079.0,0.0009042]
[1724788646582,0.6809,62080.0,62079.0,0.0009042]
[1724788646788,0.84266972,62080.0,62079.0,0.0009042]
[1724788647062,0.834982,62080.0,62079.0,0.0009042]
[1724788647274,1.161146,62080.0,62079.0,0.0009042]
[1724788647481,1.31689677,62080.0,62079.0,0.0009042]
[1724788647656,1.31289677,62080.0,62079.0,0.0009042]
[1724788647892,1.32089677,62080.0,62079.0,0.0009042]
[1724788648097,1.32789677,62080.0,62079.0,0.0009042]
[1724788649163,0.84465077,62080.0,62079.0,0.0009042]
[1724788649337,0.6829,62080.0,62079.0,0.0009042]
[1724788649511,0.84461408,62080.0,62079.0,0.0009042]
[1724788650141,0.84461017,62080.0,62079.0,0.0009042]
[1724788650346,1.00569217,62080.0,62079.0,0.0009042]
[1724788650567,0.84461017,62080.0,62079.0,0.0009042]
[1724788650713,0.843982,62080.0,62079.0,0.0009042]
[1724788650915,0.844804,62080.0,62079.0,0.0009042]
[1724788651114,1.00651417,62080.0,62079.0,0.0009042]
[1724788651522,0.844804,62080.0,62079.0,0.0009042]
[1724788651735,1.00651417,62080.0,62079.0,0.0009042]
[1724788651933,0.844804,62080.0,62079.0,0.0009042]
[1724788653469,1.32867817,62080.0,62079.0,0.0009042]
[1724788653681,1.166968,62080.0,62079.0,0.0009042]
[1724788653913,1.65084217,62080.0,62079.0,0.0009042]
[1724788654135,1.166968,62080.0,62079.0,0.0009042]
[1724788654344,1.489132,62080.0,62079.0,0.0009042]
[1724788656141,1.92915048,62080.0,62079.0,0.0009042]
[1724788657010,2.08969907,62080.0,62079.0,0.0009042]
[1724788660954,2.08969907,62080.0,62071.0,0.0004]
[1724788660955,1.30421207,62072.0,62071.0,0.0004]
[1724788661181,1.94862407,62072.0,62071.0,0.0004]
[1724788661406,2.04862407,62072.0,62071.0,0.0004]
[1724788661629,2.07162407,62072.0,62071.0,0.0004]
[1724788661849,2.09689573,62072.0,62071.0,0.0004]
[1724788662058,2.26679573,62072.0,62071.0,0.0004]
[1724788662328,2.09689573,62072.0,62071.0,0.0004]
[1724788662544,2.10989573,62072.0,62071.0,0.0004]
[1724788662973,2.27137676,62072.0,62071.0,0.0004]
[1724788663413,2.10989573,62072.0,62071.0,0.0004]
[1724788663637,2.25837676,62072.0,62071.0,0.0004]
[1724788663853,1.78868973,62072.0,62071.0,0.0004]
[1724788664068,1.49628666,62072.0,62071.0,0.0004]
[1724788664506,1.53374436,62072.0,62071.0,0.0004]
[1724788664950,1.54674436,62072.0,62071.0,0.0004]
[1724788665148,1.53274436,62072.0,62071.0,0.0004]
[1724788665507,1.54674436,62072.0,62071.0,0.0004]
[1724788666181,1.81214743,62072.0,62071.0,0.0004]
[1724788666598,1.82614743,62072.0,62071.0,0.0004]
[1724788667572,2.14835343,62072.0,62071.0,0.0004]
[1724788669423,1.82614743,62072.0,62071.0,0.0004]
[1724788670700,1.74984743,62072.0,62071.0,0.0004]
[1724788670892,0.59972936,62072.0,62071.0,0.0004]
[1724788671099,0.76083236,62072.0,62071.0,0.0004]
[1724788671665,0.90436706,62072.0,62071.0,0.0004]
[1724788671881,1.21256554,62072.0,62071.0,0.0004]
[1724788672061,1.06903836,62072.0,62071.0,0.0004]
[1724788672272,1.05503836,62072.0,62071.0,0.0004]
[1724788672508,1.34344143,62072.0,62071.0,0.0004]
[1724788672903,1.42294143,62072.0,62071.0,0.0004]
[1724788673105,1.43194143,62072.0,62071.0,0.0004]
[1724788673580,1.42294143,62072.0,62071.0,0.0004]
[1724788673792,1.41294143,62072.0,62071.0,0.0004]
[1724788674045,1.43294143,62072.0,62071.0,0.0004]
[1724788674253,1.42294143,62072.0,62071.0,0.0004]
[1724788674461,1.74514743,62072.0,62071.0,0.0004]
[1724788674670,1.67764743,62072.0,62071.0,0.0004]
[1724788674936,1.03323543,62072.0,62071.0,0.0004]
[1724788675379,1.35544143,62072.0,62071.0,0.0004]
[1724788676044,1.35544143,62072.0,62071.0,0.0786]
[1724788676526,1.35544143,62072.0,62071.0,0.0795042]
[1724788676952,1.07703836,62072.0,62071.0,0.0795042]
[1724788677156,0.75483236,62072.0,62071.0,0.1434042]
[1724788677372,1.07703836,62072.0,62071.0,0.0795042]
[1724788678514,1.35544143,62072.0,62071.0,0.0795042]
[1724788679198,1.35544143,62072.0,62071.0,0.0013042]
[1724788679629,1.51695992,62072.0,62071.0,0.0013042]
[1724788679856,1.67764743,62072.0,62071.0,0.0013042]
[1724788680314,1.35544143,62072.0,62071.0,0.0013042]
[1724788681664,1.67764743,62072.0,62071.0,0.0013042]
[1724788682102,1.35544143,62072.0,62071.0,0.0013042]
[1724788684970,1.03323543,62072.0,62071.0,0.0013042]
[1724788685359,1.35544143,62072.0,62071.0,0.0013042]
[1724788685626,0.87213243,62072.0,62071.0,0.0013042]
[1724788685838,0.87213243,62072.0,62071.0,0.0628042]
[1724788686050,0.59372936,62072.0,62071.0,0.0628042]
[1724788688025,0.47027166,62072.0,62071.0,0.16020302]
[1724788688925,0.54107882,62072.0,62071.0,0.16520302]
[1724788689357,0.58137466,62072.0,62071.0,0.1441042]
[1724788689584,1.22198373,62072.0,62071.0,0.0013042]
[1724788689816,1.93519689,62072.0,62071.0,0.0013042]
[1724788690035,1.77938973,62072.0,62071.0,0.0013042]
[1724788690247,1.78638973,62072.0,62071.0,0.0013042]
[1724788690466,1.77438973,62072.0,62071.0,0.0013042]
[1724788690902,1.70048973,62072.0,62071.0,0.0013042]
[1724788691103,1.63418973,62072.0,62071.0,0.0013042]
[1724788692680,1.31198373,62072.0,62071.0,0.0013042]
[1724788692928,0.55027166,62072.0,62071.0,0.1482042]
[1724788693151,0.55027166,62072.0,62071.0,0.16483302]
[1724788693595,0.55027166,62072.0,62071.0,0.1482042]
[1724788694440,0.69409254,62072.0,62071.0,0.1482042]
[1724788695115,0.37727166,62072.0,62071.0,0.1532042]
[1724788695349,0.52110469,62072.0,62071.0,0.1532042]
[1724788695537,0.52110469,62072.0,62071.0,0.17033302]
[1724788695538,0.37727166,62072.0,62071.0,0.17033302]
[1724788696837,0.02727166,62072.0,62071.0,0.17033302]
[1724788699182,0.02727166,62072.0,62071.0,0.33143802]
[1724788699414,0.02727166,62072.0,62071.0,0.65364902]
[1724788699869,0.02727166,62072.0,62071.0,0.97586002]
[1724788700097,0.02527166,62072.0,62071.0,0.97586002]
[1724788700325,0.09715992,62072.0,62071.0,0.97586002]
[1724788700580,0.02527166,62072.0,62071.0,0.97686002]
[1724788700791,0.02527166,62072.0,62071.0,0.97586002]
[1724788701021,0.02527166,62072.0,62071.0,0.33243802]
[1724788701240,0.02627166,62072.0,62071.0,0.33243802]
[1724788702100,0.02627166,62072.0,62071.0,0.65364902]
[1724788702323,0.09913277,62072.0,62071.0,0.65464902]
[1724788703013,0.02727166,62072.0,62071.0,0.65464902]
[1724788703534,0.07616801,62072.0,62071.0,0.65564902]
[1724788703771,0.07616801,62072.0,62071.0,0.97786002]
[1724788703990,0.09811661,62072.0,62071.0,0.3153092]
[1724788704206,0.09811661,62072.0,62071.0,0.6385202]
[1724788704207,0.02727166,62072.0,62071.0,0.6385202]
[1724788705063,0.02727166,62072.0,62071.0,0.3163092]
[1724788705286,0.02727166,62072.0,62071.0,0.41419392]
[1724788705528,0.02727166,62072.0,62071.0,0.25308892]
[1724788705952,0.02727166,62072.0,62071.0,0.25208892]
[1724788705953,0.02627166,62072.0,62071.0,0.25208892]
[1724788706163,0.02627166,62072.0,62071.0,0.1542042]
[1724788706381,0.1461157,62072.0,62071.0,0.1542042]
[1724788706593,0.1461157,62072.0,62071.0,0.1552042]
[1724788706835,0.02527166,62072.0,62071.0,0.1532042]
[1724788707055,0.02527166,62072.0,62071.0,0.18644452]
[1724788707292,0.02527166,62072.0,62071.0,0.1542042]
[1724788707751,0.12103162,62072.0,62071.0,0.1542042]
[1724788708156,0.12103162,62072.0,62071.0,0.1552042]
[1724788709050,0.12103162,62072.0,62071.0,0.1542042]
[1724788709260,0.12103162,62072.0,62071.0,0.21876732]
[1724788709689,0.12303162,62072.0,62071.0,0.21876732]
[1724788709903,0.09908615,62072.0,62071.0,0.37987232]
[1724788710126,0.09908615,62072.0,62071.0,0.70208332]
[1724788710347,0.02727166,62072.0,62071.0,0.70208332]
[1724788710826,0.02527166,62072.0,62071.0,0.70208332]
[1724788711273,0.02527166,62072.0,62071.0,0.70308332]
[1724788711498,0.02527166,62072.0,62071.0,0.70408332]
[1724788712185,0.02527166,62072.0,62071.0,0.70308332]
[1724788712420,0.02627166,62072.0,62071.0,0.70408332]
[1724788713290,0.02627166,62072.0,62071.0,0.70308332]
[1724788713528,0.02627166,62072.0,62071.0,0.70408332]
[1724788714886,0.07415059,62072.0,62071.0,0.70408332]
[1724788715575,0.07415059,62072.0,62071.0,1.02529432]
[1724788715576,0.07315059,62072.0,62071.0,1.02529432]
[1724788715823,0.07315059,62072.0,62071.0,1.02629432]
[1724788716454,0.02527166,62072.0,62071.0,1.02529432]
[1724788716667,0.07415346,62072.0,62071.0,1.02629432]
[1724788716921,0.07415346,62072.0,62071.0,1.02529432]
[1724788717152,0.07415346,62072.0,62071.0,1.02629432]
[1724788717386,0.07415346,62072.0,62071.0,1.02529432]
[1724788717863,0.07415346,62072.0,62071.0,1.02629432]
[1724788718030,0.07415346,62072.0,62071.0,1.34850532]
[1724788718031,0.02627166,62072.0,62071.0,1.34850532]
[1724788718660,0.02627166,62072.0,62071.0,1.02629432]
[1724788718878,0.07415129,62072.0,62071.0,1.02629432]
[1724788719038,0.07415129,62072.0,62071.0,1.02529432]
[1724788719039,0.02527166,62072.0,62071.0,1.02529432]
[1724788719249,0.02627166,62072.0,62071.0,0.1552042]
[1724788719450,0.02627166,62072.0,62071.0,0.0083042]
[1724788719832,0.02627166,62072.0,62071.0,0.0063042]
[1724788719833,0.02527166,62072.0,62071.0,0.0063042]
[1724788720281,0.02627166,62072.0,62071.0,0.0103042]
[1724788720511,0.12103996,62072.0,62071.0,0.06546662]
[1724788720760,0.02527166,62072.0,62071.0,0.06946662]
[1724788720951,0.02527166,62072.0,62071.0,0.06546662]
[1724788721625,0.02627166,62072.0,62071.0,0.07446662]
[1724788721853,0.12203996,62072.0,62071.0,0.0153042]
[1724788722080,0.12103996,62072.0,62071.0,0.0063042]
[1724788722316,0.02527166,62072.0,62071.0,0.0063042]
[1724788722543,0.02527166,62072.0,62071.0,0.0073042]
[1724788724369,0.02527166,62072.0,62071.0,0.06616682]
[1724788724552,0.02527166,62072.0,62071.0,0.14246682]
[1724788725258,0.02527166,62072.0,62071.0,0.0073042]
[1724788725681,0.12106811,62072.0,62071.0,0.0073042]
[1724788726590,0.16517166,62072.0,62071.0,0.0073042]
[1724788727472,0.28493191,62072.0,62071.0,0.0063042]
[1724788727702,0.28493191,62072.0,62071.0,0.0013042]
[1724788727945,0.28493191,62072.0,62071.0,0.0023042]
[1724788727946,0.18917166,62072.0,62071.0,0.0023042]
[1724788728179,0.35127468,62072.0,62071.0,0.0023042]
[1724788728414,1.04568668,62072.0,62071.0,0.0023042]
[1724788728627,1.14568668,62072.0,62071.0,0.0013042]
[1724788729028,1.14968668,62072.0,62071.0,0.0013042]
[1724788729509,1.15568668,62072.0,62071.0,0.0013042]
[1724788729781,1.14968668,62072.0,62071.0,0.0013042]
[1724788730012,1.48089268,62072.0,62071.0,0.0013042]
[1724788730222,1.15868668,62072.0,62071.0,0.0013042]
[1724788730886,1.15368668,62072.0,62071.0,0.0013042]
[1724788731121,1.16068668,62072.0,62071.0,0.0013042]
[1724788731348,1.48289268,62072.0,62071.0,0.0013042]
[1724788731783,1.16068668,62072.0,62071.0,0.0013042]
[1724788731989,1.48289268,62072.0,62071.0,0.0013042]
[1724788732206,1.16068668,62072.0,62071.0,0.0013042]
[1724788732879,1.48289268,62072.0,62071.0,0.0013042]
[1724788733125,1.16068668,62072.0,62071.0,0.0013042]
[1724788733332,1.48289268,62072.0,62071.0,0.0013042]
[1724788735140,0.83848068,62072.0,62071.0,0.0013042]
[1724788736646,0.35417166,62072.0,62071.0,0.0013042]
[1724788736837,0.51527466,62072.0,62071.0,0.0013042]
[1724788738024,0.35417166,62072.0,62071.0,0.0013042]
[1724788738420,0.21427166,62072.0,62071.0,0.0013042]
[1724788738833,0.37537466,62072.0,62071.0,0.0013042]
[1724788740336,0.19127166,62072.0,62071.0,0.0013042]
[1724788740618,0.04127166,62072.0,62071.0,0.0725042]
[1724788740846,0.13700741,62072.0,62071.0,0.23683096]
[1724788741042,0.04127166,62072.0,62071.0,0.34916618]
[1724788741297,0.10407302,62072.0,62071.0,0.34916618]
[1724788741509,0.07313662,62072.0,62071.0,0.99358818]
[1724788741743,0.07313662,62072.0,62071.0,1.31579918]
[1724788741744,0.03327166,62072.0,62071.0,1.31579918]
[1724788743339,0.02527166,62072.0,62071.0,1.63801018]
[1724788743556,0.02727166,62072.0,62071.0,1.63801018]
[1724788743766,0.02527166,62072.0,62071.0,1.63801018]
[1724788744189,0.02527166,62072.0,62071.0,1.64001018]
[1724788744190,0.02627166,62072.0,62071.0,1.64001018]
[1724788744404,0.02527166,62072.0,62071.0,1.63801018]
[1724788744854,0.02627166,62072.0,62071.0,1.64001018]
[1724788745289,0.02727166,62072.0,62071.0,1.64201018]
[1724788745951,0.02627166,62072.0,62071.0,1.64001018]
[1724788746678,0.02627166,62072.0,62071.0,1.64101018]
[1724788746679,0.02727166,62072.0,62071.0,1.64101018]
[1724788747554,0.02727166,62072.0,62071.0,1.74101018]
[1724788748203,0.000822,62079.0,62078.0,1.88309007]
[1724788748410,0.000822,62079.0,62078.0,2.30526507]
[1724788749074,0.000822,62079.0,62078.0,2.30426507]
[1724788749281,0.000822,62079.0,62078.0,2.46423052]
[1724788750216,0.000822,62079.0,62078.0,2.46323052]
[1724788750678,0.001822,62079.0,62078.0,2.47723052]
[1724788751355,0.001822,62079.0,62078.0,2.15005552]
[1724788751571,0.002822,62079.0,62078.0,2.16405552]
[1724788752014,0.001822,62079.0,62078.0,2.15005552]
[1724788752227,0.002822,62079.0,62078.0,2.18790721]
[1724788752450,0.002822,62079.0,62078.0,2.16405552]
[1724788752910,0.000822,62088.0,62087.0,1.88537907]
[1724788753131,0.000822,62088.0,62087.0,2.14534452]
[1724788753873,0.000822,62088.0,62087.0,2.46747252]
[1724788754307,0.000822,62088.0,62087.0,2.14534452]
[1724788754526,0.000822,62088.0,62087.0,2.48147252]
[1724788754932,0.001822,62088.0,62087.0,2.49547252]
[1724788755155,0.001822,62088.0,62087.0,2.48147252]
[1724788755382,0.001822,62088.0,62087.0,2.49547252]
[1724788756041,0.000822,62088.0,62087.0,2.48147252]
[1724788756298,0.000822,62088.0,62087.0,2.49547252]
[1724788756506,0.47989634,62107.0,62106.0,1.207505]
[1724788756729,0.47989634,62107.0,62106.0,1.61104826]
[1724788756952,0.0613,62120.0,62111.0,0.80501]
[1724788757416,0.161777,62129.0,62111.0,1.267714]
[1724788757417,0.062122,62129.0,62111.0,1.267714]
[1724788757632,0.47989634,62127.0,62111.0,1.267714]
[1724788758996,0.062122,62129.0,62111.0,1.603718]
[1724788759210,0.062122,62129.0,62111.0,1.281714]
[1724788759448,0.062122,62129.0,62111.0,1.44167945]
[1724788760170,0.062122,62129.0,62111.0,1.45167945]
[1724788760649,0.062122,62129.0,62111.0,1.46567945]
[1724788760893,0.062122,62129.0,62111.0,1.78768345]
[1724788761155,0.47989634,62128.0,62111.0,1.46567945]
[1724788761827,0.47989634,62128.0,62111.0,1.78768345]
[1724788762063,0.062122,62129.0,62111.0,1.78768345]
[1724788762296,0.000822,62129.0,62111.0,1.89268345]
[1724788762527,0.000822,62129.0,62128.0,1.49070907]
[1724788762760,0.000822,62129.0,62128.0,1.64596998]
[1724788763409,0.000822,62129.0,62128.0,1.96788598]
[1724788763891,0.00822,62146.0,62128.0,1.96788598]
[1724788763892,0.01766016,62162.0,62150.0,0.005]
[1724788764159,0.01766016,62162.0,62150.0,1.40971007]
[1724788764160,0.47989634,62155.0,62150.0,1.40971007]
[1724788764388,0.01766016,62162.0,62150.0,1.40971007]
[1724788764389,0.000822,62162.0,62150.0,1.40971007]
[1724788764822,0.000822,62162.0,62150.0,1.131307]
[1724788765051,0.000822,62162.0,62150.0,1.137307]
[1724788765709,0.000822,62162.0,62150.0,1.40971007]
[1724788765937,0.000822,62162.0,62150.0,1.48855026]
[1724788766160,0.000822,62162.0,62150.0,1.81035226]
[1724788766371,0.000822,62162.0,62150.0,1.48855026]
[1724788767487,0.000822,62162.0,62150.0,1.47455026]
[1724788767698,0.000822,62162.0,62150.0,1.48855026]
[1724788767908,0.000822,62162.0,62150.0,1.50255026]
[1724788768194,0.000822,62162.0,62150.0,1.48855026]
[1724788768402,0.000822,62162.0,62150.0,1.50255026]
[1724788768629,0.000822,62162.0,62150.0,1.22414719]
[1724788769085,0.000822,62162.0,62150.0,1.19614719]
[1724788769297,0.000822,62162.0,62150.0,1.21014719]
[1724788769513,0.000822,62162.0,62150.0,1.51794919]
[1724788769732,0.000822,62162.0,62150.0,1.79635226]
[1724788769953,0.000822,62162.0,62150.0,1.81035226]
[1724788770388,0.000822,62162.0,62161.0,1.853697]
[1724788770611,0.00822,62175.0,62168.0,0.487562]
[1724788770825,0.00822,62175.0,62168.0,1.81018907]
[1724788771037,0.00822,62175.0,62168.0,2.13189707]
[1724788771267,0.00822,62175.0,62174.0,1.40927207]
[1724788771493,0.083322,62187.0,62186.0,0.487422]
[1724788771494,0.000822,62187.0,62186.0,0.487422]
[1724788771725,0.000822,62187.0,62186.0,1.40905507]
[1724788773993,0.000822,62187.0,62186.0,1.9835098]
[1724788775580,0.000822,62187.0,62186.0,2.3191248]
[1724788775844,0.0004,62199.0,62198.0,1.451988]
[1724788776059,0.1425,62221.0,62213.0,0.487214]
[1724788776283,0.0783,62221.0,62213.0,1.19500619]
[1724788776528,0.1418,62227.0,62213.0,1.51648219]
[1724788776960,0.0658,62232.0,62218.0,1.451525]
[1724788777171,0.47989634,62233.0,62218.0,1.530925]
[1724788777393,0.0812,62239.0,62238.0,0.808367]
[1724788777648,0.0004,62239.0,62238.0,0.808367]
[1724788778340,0.08,62239.0,62238.0,0.005]
[1724788778549,0.08,62239.0,62238.0,0.165673]
[1724788778762,0.08,62239.0,62238.0,0.005]
[1724788778986,0.08,62239.0,62238.0,0.018]
[1724788779409,0.08,62239.0,62238.0,0.165673]
[1724788779637,0.08,62239.0,62238.0,0.019]
[1724788779872,0.08,62239.0,62238.0,0.184673]
[1724788780104,0.08,62239.0,62238.0,0.2352768]
[1724788780354,0.08,62239.0,62238.0,0.2302768]
[1724788780566,0.08,62239.0,62238.0,0.2432768]
[1724788780784,0.08,62239.0,62238.0,0.5516238]
[1724788781019,0.08,62239.0,62238.0,0.5376238]
[1724788781231,0.08,62239.0,62238.0,0.2292768]
[1724788781649,0.08,62239.0,62238.0,0.5506238]
[1724788781859,0.08,62239.0,62238.0,1.1803178]
[1724788782068,0.0004,62239.0,62238.0,0.8699708]
[1724788782496,0.0004,62239.0,62238.0,0.8589708]
[1724788782710,0.0004,62239.0,62238.0,1.2522178]
[1724788782927,0.0004,62239.0,62238.0,1.2582178]
[1724788783360,0.0004,62239.0,62238.0,1.5685648]
[1724788783600,0.0004,62239.0,62238.0,1.80280828]
[1724788783601,0.00122,62239.0,62238.0,1.80280828]
[1724788783829,0.00822,62250.0,62249.0,1.450805]
[1724788784043,0.0004,62259.0,62258.0,0.91546111]
[1724788784281,0.0004,62259.0,62258.0,1.87919011]
[1724788784491,0.0004,62259.0,62258.0,2.30043311]
[1724788784702,0.0004,62259.0,62258.0,2.34747659]
[1724788785361,0.47989634,62284.0,62269.0,1.79733811]
[1724788785610,0.47989634,62284.0,62269.0,2.14644704]
[1724788786065,0.01679825,62303.0,62278.0,1.45013]
[1724788786282,0.0799,62298.0,62278.0,1.84417059]
[1724788786503,0.0647,62292.0,62278.0,0.05204348]
[1724788786722,0.35100002,62298.0,62275.0,0.005]
[1724788786723,0.0647,62278.0,62275.0,0.005]
[1724788786956,0.0647,62278.0,62251.0,0.34699711]
[1724788786957,0.35,62275.0,62267.0,0.005]
[1724788787177,0.0799,62273.0,62271.0,0.005]
[1724788787441,0.160587,62272.0,62269.0,0.014]
[1724788787669,0.160587,62272.0,62254.0,0.321263]
[1724788787670,0.4,62263.0,62256.0,0.005]
[1724788787880,0.4,62263.0,62227.0,0.0659]
[1724788787881,0.0797,62254.0,62248.0,0.005]
[1724788788128,0.160639,62252.0,62242.0,0.005]
[1724788788353,0.05,62246.0,62242.0,0.05355001]
[1724788788579,0.321333,62241.0,62233.0,0.005]
[1724788788797,0.321333,62241.0,62224.0,0.160708]
[1724788788798,0.08070002,62240.0,62237.0,0.005]
[1724788789014,0.0797,62240.0,62237.0,0.005]
[1724788790324,0.0797,62240.0,62239.0,0.005]
[1724788790546,0.0877,62240.0,62239.0,0.16567]
[1724788790768,0.0797,62247.0,62239.0,0.021667]
[1724788790983,0.0797,62247.0,62239.0,0.005]
[1724788791426,0.0797,62247.0,62240.0,0.321335]
[1724788791647,0.0797,62247.0,62237.0,0.002]
[1724788791862,0.0797,62247.0,62240.0,0.160667]
[1724788792116,0.0613,62252.0,62241.0,0.0515142]
[1724788792319,0.0613,62252.0,62241.0,0.0032129]
[1724788792320,0.005,62247.0,62241.0,0.0032129]
[1724788792541,0.005,62247.0,62246.0,0.481957]
[1724788792752,0.0613,62252.0,62248.0,0.160647]
[1724788792966,0.0613,62252.0,62240.0,0.002]
[1724788793175,0.0774,62255.0,62241.0,0.00321256]
[1724788793399,0.0639,62265.0,62241.0,0.00321256]
[1724788793612,0.0762,62264.0,62252.0,0.321273]
[1724788793852,0.4,62276.0,62262.0,0.321221]
[1724788794059,0.00300002,62275.0,62262.0,0.0321221]
[1724788794269,0.0762,62274.0,62262.0,0.0321221]
[1724788794478,0.00300002,62273.0,62262.0,0.0271221]
[1724788794907,0.160586,62272.0,62262.0,0.0271221]
[1724788795133,0.0762,62274.0,62263.0,0.01877401]
[1724788795134,0.00300002,62271.0,62263.0,0.01877401]
[1724788795343,0.16358902,62271.0,62262.0,0.001]
[1724788795553,0.1,62270.0,62262.0,0.161611]
[1724788795770,0.0762,62274.0,62271.0,0.160586]
[1724788796019,0.0762,62274.0,62262.0,0.001]
[1724788796020,0.004,62264.0,62262.0,0.001]
[1724788796234,0.00300002,62270.0,62263.0,0.160608]
[1724788796486,0.00300002,62270.0,62264.0,0.0482846]
[1724788796705,0.35,62271.0,62264.0,0.0482846]
[1724788796706,0.359,62271.0,62264.0,0.0482846]
[1724788796926,0.009,62271.0,62270.0,0.481771]
[1724788797140,0.009,62271.0,62270.0,0.801952]
[1724788797361,0.007,62272.0,62270.0,0.9142667]
[1724788797569,0.007,62272.0,62271.0,0.80294]
[1724788797809,0.000819,62273.0,62272.0,0.802927]
[1724788798436,0.000819,62273.0,62272.0,0.160585]
[1724788798651,0.000819,62273.0,62272.0,0.481756]
[1724788798867,0.000819,62273.0,62264.0,0.0482846]
[1724788799121,0.0823,62272.0,62250.0,0.0617]
[1724788799343,0.0823,62272.0,62270.0,0.004]
[1724788799589,0.0823,62272.0,62271.0,0.481764]
[1724788799877,0.0823,62272.0,62271.0,0.5299404]
[1724788800098,0.0823,62272.0,62271.0,0.2087644]
[1724788800567,0.0833,62272.0,62271.0,0.2087644]
[1724788800791,0.0823,62272.0,62271.0,0.2087644]
[1724788801032,0.0823,62272.0,62271.0,0.2227644]
[1724788801258,0.0833,62272.0,62271.0,0.2227644]
[1724788801518,0.0833,62272.0,62271.0,0.014]
[1724788801738,0.0833,62272.0,62271.0,0.509764]
[1724788801964,0.0843,62272.0,62271.0,0.028]
[1724788802184,0.0856,62272.0,62271.0,0.028]
[1724788802438,0.0856,62272.0,62256.0,0.321251]
[1724788802439,0.10960002,62272.0,62256.0,0.321251]
[1724788802675,0.10960002,62272.0,62251.0,0.55195597]
[1724788802676,0.0769,62263.0,62251.0,0.55195597]
[1724788803190,0.0612,62261.0,62251.0,0.07205963]
[1724788803193,0.0612,62261.0,62238.0,0.0009009]
[1724788803471,0.07880002,62260.0,62251.0,0.160639]
[1724788803756,0.0758,62260.0,62238.0,0.0009009]
[1724788803956,0.0758,62260.0,62256.0,0.001]
[1724788804181,0.0758,62260.0,62247.0,0.321296]
[1724788804414,0.07880002,62260.0,62248.0,0.321291]
[1724788804638,0.07880002,62260.0,62239.0,0.00838009]
[1724788804639,0.023,62259.0,62246.0,0.321302]
[1724788804876,0.023,62259.0,62246.0,0.385566]
[1724788805105,0.00300002,62258.0,62248.0,0.160647]